fUST/lending_fUST_20250208
["ID","MTS","AMOUNT","RATE_DAILY","PERIOD"]
[352274534,1739023850602,-151.0,0.00011917,2]
[352274535,1739023850611,-544.2,0.00011917,2]
[352274537,1739023850621,-605.05,0.00011917,2]
[352274539,1739023850631,-500.0,0.00011917,2]
[352274541,1739023850642,-500.0,0.00011917,2]
[352274543,1739023850653,-954.26,0.00011917,2]
[352274545,1739023850662,-170.00563235,0.00011917,2]
[352274547,1739023850672,-1370.55,0.00011917,2]
[352274549,1739023850682,-1219.79,0.00011917,2]
[352274551,1739023850691,-500.0,0.00011917,2]
[352274553,1739023850701,-500.0,0.00011917,2]
[352274555,1739023850710,-500.0,0.00011917,2]
[352274557,1739023850719,-500.0,0.00011917,2]
[352274559,1739023850729,-652.03,0.00011917,2]
[352274561,1739023850740,-903.68,0.00011917,2]
[352274563,1739023850749,-500.0,0.00011917,2]
[352274565,1739023850759,-605.42,0.00011917,2]
[352274567,1739023850769,-151.0,0.00011917,2]
[352274569,1739023850781,-500.0,0.00011917,2]
[352274571,1739023850794,-348.14879415,0.00011917,2]
[352274573,1739023850805,-1124.23,0.00011917,2]
[352274575,1739023850815,-500.0,0.00011917,2]
[352274577,1739023850825,-500.0,0.00011917,2]
[352274579,1739023850835,-540.043375,0.00011917,2]
[352274581,1739023850844,-540.043375,0.00011917,2]
[352274583,1739023850854,-318.861327,0.00011917,2]
[352274585,1739023850864,-318.861327,0.00011917,2]
[352274587,1739023850874,-766.56,0.00011917,2]
[352274589,1739023850884,-1050.102955,0.00011917,2]
[352274591,1739023850894,-1050.102955,0.00011917,2]
[352274593,1739023850904,-700.17,0.00011917,2]
[352274595,1739023850914,-151.0,0.00011917,2]
[352274597,1739023850924,-151.0,0.00011917,2]
[352274599,1739023850934,-500.0,0.00011917,2]
[352274601,1739023850944,-157.516789,0.00011917,2]
[352274603,1739023850953,-733.1,0.00011917,2]
[352274605,1739023850963,-1739.71,0.00011917,2]
[352274607,1739023850973,-500.0,0.00011917,2]
[352274609,1739023850982,-3208.72,0.00011917,2]
[352274611,1739023850992,-1625.89,0.00011917,2]
[352274612,1739023851002,-500.0,0.00011917,2]
[352274614,1739023851012,-500.0,0.00011917,2]
[352274616,1739023851024,-151.0,0.00011917,2]
[352274618,1739023851033,-1047.27,0.00011917,2]
[352274620,1739023851043,-976.87,0.00011917,2]
[352274622,1739023851052,-500.0,0.00011917,2]
[352274624,1739023851062,-500.0,0.00011917,2]
[352274626,1739023851072,-361.684387,0.00011917,2]
[352274628,1739023851082,-361.684387,0.00011917,2]
[352274630,1739023851094,-574.03,0.00011917,2]
[352274632,1739023851105,-1280.51,0.00011917,2]
[352274634,1739023851117,-500.0,0.00011917,2]
[352274636,1739023851127,-500.0,0.00011917,2]
[352274638,1739023851136,-500.0,0.00011917,2]
[352274640,1739023851146,-1464.14,0.00011917,2]
[352274642,1739023851156,-500.0,0.00011917,2]
[352274644,1739023851167,-537.33,0.00011917,2]
[352274646,1739023851176,-301.397939,0.00011917,2]
[352274648,1739023851186,-610.07,0.00011917,2]
[352274650,1739023851195,-5430.26,0.00011917,2]
[352274652,1739023851205,-46373.76,0.00011917,2]
[352274654,1739023851215,-4363.49,0.00011917,2]
[352274656,1739023851225,-301.397939,0.00011917,2]
[352274657,1739023851234,-151.0,0.00011917,2]
[352274660,1739023851244,-151.0,0.00011917,2]
[352274662,1739023851253,-15922.79,0.00011917,2]
[352274664,1739023851263,-2135.78,0.00011917,2]
[352274666,1739023851273,-1962.13,0.00011917,2]
[352274667,1739023851282,-1504.34,0.00011917,2]
[352274670,1739023851293,-623.76,0.00011917,2]
[352274672,1739023851303,-1055.43,0.00011917,2]
[352274673,1739023851314,-1702.95,0.00011917,2]
[352274675,1739023851323,-500.0,0.00011917,2]
[352274677,1739023851332,-500.0,0.00011917,2]
[352274679,1739023851342,-500.0,0.00011917,2]
[352274681,1739023851351,-776.18,0.00011917,2]
[352274683,1739023851361,-527.87,0.00011917,2]
[352274685,1739023851370,-500.0,0.00011917,2]
[352274687,1739023851380,-500.0,0.00011917,2]
[352274689,1739023851390,-500.0,0.00011917,2]
[352274691,1739023851399,-500.0,0.00011917,2]
[352274693,1739023851410,-1803.96,0.00011917,2]
[352274695,1739023851420,-397.23,0.00011917,2]
[352274697,1739023851431,-1327.61,0.00011917,2]
[352274699,1739023851440,-275.77,0.00011917,2]
[352274701,1739023851450,-1765.06,0.00011917,2]
[352274703,1739023851460,-500.0,0.00011917,2]
[352274705,1739023851470,-500.0,0.00011917,2]
[352274707,1739023851479,-284.079337,0.00011917,2]
[352274709,1739023851488,-638.877251,0.00011917,2]
[352274711,1739023851498,-500.0,0.00011917,2]
[352274713,1739023851508,-638.877251,0.00011917,2]
[352274715,1739023851517,-284.079337,0.00011917,2]
[352274717,1739023851526,-500.0,0.00011917,2]
[352274719,1739023851536,-8699.61,0.00011917,2]
[352274720,1739023851545,-500.0,0.00011917,2]
[352274722,1739023851555,-984.54,0.00011917,2]
[352274724,1739023851565,-3503.91,0.00011917,2]
[352274726,1739023851575,-1832.65,0.00011917,2]
[352274728,1739023851585,-168.837546,0.00011917,2]
[352274730,1739023851594,-168.837546,0.00011917,2]
[352274732,1739023851604,-3451.25,0.00011917,2]
[352274734,1739023851614,-583.77995965,0.00011917,2]
[352274736,1739023851624,-1409.96,0.00011917,2]
[352274738,1739023851634,-500.0,0.00011917,2]
[352274740,1739023851643,-768.81,0.00011917,2]
[352274742,1739023851653,-1444.4,0.00011917,2]
[352274744,1739023851662,-151.0,0.00011917,2]
[352274746,1739023851672,-784.31,0.00011917,2]
[352274748,1739023851681,-872.97,0.00011917,2]
[352274750,1739023851691,-1610.78,0.00011917,2]
[352274752,1739023851701,-500.0,0.00011917,2]
[352274754,1739023851711,-1214.04,0.00011917,2]
[352274756,1739023851721,-500.0,0.00011917,2]
[352274758,1739023851731,-629.89,0.00011917,2]
[352274760,1739023851741,-641.27,0.00011917,2]
[352274762,1739023851751,-500.0,0.00011917,2]
[352274764,1739023851762,-500.0,0.00011917,2]
[352274766,1739023851771,-500.0,0.00011917,2]
[352274768,1739023851781,-1058.58,0.00011917,2]
[352274770,1739023851790,-2400.0,0.00011947,2]
[352274772,1739023851800,-500.0,0.00011947,2]
[352274774,1739023851809,-151.0,0.00011954,2]
[352274776,1739023851820,-638.877251,0.00011954,2]
[352274778,1739023851830,-638.877251,0.00011954,2]
[352274780,1739023851840,-1000.0,0.00012,12]
[352274782,1739023851851,-2000.0,0.00012,2]
[352274785,1739023851861,-7864.28287917,0.00012,2]
[352274787,1739023851870,-2000.0,0.00012,2]
[352274789,1739023851880,-155.0,0.0001201,2]
[352274790,1739023851890,-155.01,0.0001201,2]
[352274792,1739023851900,-152.0,0.0001201,2]
[352274794,1739023851911,-152.0,0.0001201,2]
[352274796,1739023851920,-152.0,0.0001201,2]
[352274798,1739023851931,-152.0,0.0001201,2]
[352274801,1739023851941,-152.0,0.0001201,2]
[352274803,1739023851951,-152.0,0.0001201,2]
[352274805,1739023851961,-152.0,0.0001201,2]
[352274807,1739023851971,-152.0,0.0001201,2]
[352274809,1739023851980,-152.0,0.0001201,2]
[352274811,1739023851990,-152.0,0.0001201,2]
[352274813,1739023852000,-152.0,0.0001201,2]
[352274815,1739023852010,-152.0,0.0001201,2]
[352274817,1739023852023,-152.0,0.0001201,2]
[352274819,1739023852033,-152.0,0.0001201,2]
[352274821,1739023852044,-152.0,0.0001201,2]
[352274823,1739023852054,-152.0,0.0001201,2]
[352274825,1739023852064,-152.0,0.0001201,2]
[352274827,1739023852074,-152.0,0.0001201,2]
[352274829,1739023852083,-152.0,0.0001201,2]
[352274831,1739023852095,-153.0,0.0001201,2]
[352274833,1739023852105,-153.0,0.0001201,2]
[352274835,1739023852115,-153.0,0.0001201,2]
[352274837,1739023852125,-153.0,0.0001201,2]
[352274839,1739023852135,-153.0,0.0001201,2]
[352274841,1739023852144,-153.0,0.0001201,2]
[352274843,1739023852155,-153.0,0.0001201,2]
[352274845,1739023852165,-153.0,0.0001201,2]
[352274847,1739023852176,-153.0,0.0001201,2]
[352274849,1739023852186,-153.0,0.0001201,2]
[352274851,1739023852196,-153.0,0.0001201,2]
[352274853,1739023852206,-153.0,0.0001201,2]
[352274855,1739023852216,-165.66,0.0001201,2]
[352274857,1739023852226,-420.0,0.0001204,2]
[352274858,1739023852235,-70.31947014,0.00012053,2]
[352275209,1739024124763,300.0,0.00018,120]
[352275210,1739024142657,400.0,0.000184,120]
[352275215,1739024559409,198.29,8.002e-05,2]
[352275332,1739025032105,-2161.0,9.99e-05,2]
[352275334,1739025032115,-300.0,9.995e-05,2]
[352275336,1739025032124,-22744.7564985,9.996e-05,2]
[352275338,1739025032133,-1465.46011962,0.000108,2]
[352275339,1739025032143,-237.9977596,0.00010858,2]
[352275340,1739025032152,-500.0,0.00010957,2]
[352275342,1739025032162,-506.07222546,0.00010958,2]
[352275344,1739025032172,-509.88848356,0.00010958,2]
[352275346,1739025032182,-500.0,0.00010958,2]
[352275348,1739025032191,-410.87524537,0.00010958,2]
[352275350,1739025032200,-500.0,0.00010958,2]
[352275352,1739025032209,-500.89598415,0.00010958,2]
[352275354,1739025032219,-500.0,0.00010958,2]
[352275356,1739025032228,-500.0,0.00010958,2]
[352275358,1739025032237,-500.0,0.00010958,2]
[352275360,1739025032247,-482.67531648,0.00010958,2]
[352275362,1739025032256,-500.0,0.00010958,2]
[352275364,1739025032265,-222.47802965,0.00010958,2]
[352275366,1739025032275,-211.92438657,0.00010958,2]
[352275368,1739025032284,-504.2249143,0.00010958,2]
[352275370,1739025032293,-500.0,0.00010958,2]
[352275372,1739025032302,-500.0,0.00010958,2]
[352275374,1739025032311,-503.37826417,0.00010958,2]
[352275376,1739025032321,-500.0,0.00010958,2]
[352275377,1739025032330,-500.0,0.00010958,2]
[352275378,1739025032339,-500.0,0.00010958,2]
[352275379,1739025032348,-500.0,0.00010958,2]
[352275380,1739025032358,-220.91395251,0.00010958,2]
[352275381,1739025032367,-500.0,0.00010958,2]
[352275382,1739025032376,-500.0,0.00010958,2]
[352275383,1739025032387,-500.0,0.00010958,2]
[352275384,1739025032399,-500.0,0.00010958,2]
[352275385,1739025032410,-500.0,0.00010958,2]
[352275386,1739025032419,-452.45943252,0.00010958,2]
[352275387,1739025032429,-500.0,0.00010958,2]
[352275388,1739025032439,-500.0,0.00010958,2]
[352275389,1739025032448,-500.0,0.00010958,2]
[352275390,1739025032457,-515.22791306,0.00010958,2]
[352275391,1739025032466,-500.0,0.00010958,2]
[352275392,1739025032477,-506.71006065,0.00010958,2]
[352275393,1739025032486,-500.0,0.00010958,2]
[352275394,1739025032495,-500.0,0.00010958,2]
[352275395,1739025032504,-500.0,0.00010958,2]
[352275396,1739025032513,-500.0,0.00010958,2]
[352275397,1739025032522,-500.0,0.00010958,2]
[352275398,1739025032531,-500.0,0.00010958,2]
[352275399,1739025032540,-500.0,0.00010958,2]
[352275400,1739025032556,-500.0,0.00010958,2]
[352275401,1739025032564,-500.73741514,0.00010958,2]
[352275402,1739025032575,-500.0,0.00010958,2]
[352275403,1739025032584,-500.0,0.00010958,2]
[352275404,1739025032593,-500.81490185,0.00010958,2]
[352275405,1739025032602,-500.0,0.00010958,2]
[352275406,1739025032612,-500.0,0.00010958,2]
[352275407,1739025032621,-500.0,0.00010958,2]
[352275408,1739025032630,-500.0,0.00010958,2]
[352275409,1739025032639,-500.0,0.00010958,2]
[352275410,1739025032649,-500.0,0.00010958,2]
[352275411,1739025032658,-500.0,0.00010958,2]
[352275412,1739025032668,-500.0,0.00010958,2]
[352275413,1739025032677,-360.59082124,0.00010958,2]
[352275414,1739025032687,-501.43377224,0.00010958,2]
[352275415,1739025032695,-500.0,0.00010958,2]
[352275416,1739025032704,-500.07064162,0.00010958,2]
[352275417,1739025032714,-505.91623262,0.00010958,2]
[352275418,1739025032723,-500.0,0.00010958,2]
[352275419,1739025032733,-500.0,0.00010958,2]
[352275420,1739025032743,-500.0,0.00010958,2]
[352275421,1739025032752,-201.92633535,0.00010958,2]
[352275422,1739025032762,-500.0,0.00010958,2]
[352275423,1739025032771,-500.22167013,0.00010958,2]
[352275424,1739025032780,-500.0,0.00010958,2]
[352275425,1739025032789,-501.68017422,0.00010958,2]
[352275426,1739025032799,-500.0,0.00010958,2]
[352275427,1739025032809,-500.0,0.00010958,2]
[352275428,1739025032818,-564.85,0.00010958,2]
[352275429,1739025032828,-500.0,0.00010958,2]
[352275430,1739025032838,-500.0,0.00010958,2]
[352275431,1739025032847,-502.72163225,0.00010958,2]
[352275432,1739025032856,-500.0,0.00010958,2]
[352275433,1739025032866,-558.10898564,0.00010958,2]
[352275434,1739025032875,-500.0,0.00010958,2]
[352275435,1739025032885,-506.82040956,0.00010958,2]
[352275436,1739025032894,-500.0,0.00010958,2]
[352275437,1739025032903,-558.86174959,0.00010958,2]
[352275438,1739025032913,-500.0,0.00010958,2]
[352275439,1739025032926,-500.0,0.00010958,2]
[352275440,1739025032935,-500.0,0.00010958,2]
[352275441,1739025032945,-500.0,0.00010958,2]
[352275442,1739025032954,-500.0,0.00010958,2]
[352275443,1739025032964,-500.0,0.00010958,2]
[352275444,1739025032974,-500.0,0.00010958,2]
[352275445,1739025032983,-500.0,0.00010958,2]
[352275446,1739025032993,-500.0,0.00010958,2]
[352275447,1739025033002,-500.0,0.00010958,2]
[352275448,1739025033011,-388.58976229,0.00010958,2]
[352275449,1739025033021,-500.0,0.00010958,2]
[352275450,1739025033031,-500.0,0.00010958,2]
[352275451,1739025033040,-387.40076996,0.00010958,2]
[352275452,1739025033050,-500.0,0.00010958,2]
[352275453,1739025033059,-602.47,0.00010958,2]
[352275454,1739025033069,-500.0,0.00010958,2]
[352275455,1739025033079,-500.0,0.00010958,2]
[352275456,1739025033088,-500.0,0.00010958,2]
[352275457,1739025033098,-500.0,0.00010958,2]
[352275458,1739025033107,-500.0,0.00010958,2]
[352275459,1739025033117,-882.15,0.00010958,2]
[352275460,1739025033126,-500.0,0.00010958,2]
[352275461,1739025033136,-500.0,0.00010958,2]
[352275462,1739025033146,-500.0,0.00010958,2]
[352275463,1739025033156,-500.0,0.00010958,2]
[352275464,1739025033166,-500.0,0.00010958,2]
[352275465,1739025033179,-500.0,0.00010958,2]
[352275466,1739025033188,-500.0,0.00010958,2]
[352275467,1739025033198,-1223.87,0.00010958,2]
[352275468,1739025033208,-500.0,0.00010958,2]
[352275469,1739025033217,-500.0,0.00010958,2]
[352275470,1739025033227,-1236.7,0.00010958,2]
[352275471,1739025033237,-500.0,0.00010958,2]
[352275472,1739025033246,-500.0,0.00010958,2]
[352275473,1739025033256,-500.0,0.00010958,2]
[352275474,1739025033267,-732.76,0.00010958,2]
[352275475,1739025033277,-500.0,0.00010958,2]
[352275476,1739025033286,-500.0,0.00010958,2]
[352275477,1739025033295,-551.6,0.00010958,2]
[352275478,1739025033305,-509.32,0.00010958,2]
[352275479,1739025033315,-500.0,0.00010958,2]
[352275480,1739025033325,-500.0,0.00010958,2]
[352275481,1739025033335,-500.0,0.00010958,2]
[352275482,1739025033345,-500.0,0.00010958,2]
[352275483,1739025033355,-500.0,0.00010958,2]
[352275484,1739025033364,-500.0,0.00010958,2]
[352275485,1739025033374,-500.0,0.00010958,2]
[352275486,1739025033385,-500.0,0.00010958,2]
[352275487,1739025033396,-500.0,0.00010958,2]
[352275488,1739025033412,-500.0,0.00010958,2]
[352275489,1739025033604,-500.0,0.00010958,2]
[352275490,1739025033615,-500.0,0.00010958,2]
[352275491,1739025033625,-500.0,0.00010958,2]
[352275492,1739025033636,-500.0,0.00010958,2]
[352275493,1739025033647,-500.0,0.00010958,2]
[352275494,1739025033657,-1069.95,0.00010958,2]
[352275495,1739025033667,-500.0,0.00010958,2]
[352275496,1739025033678,-906.53,0.00010958,2]
[352275497,1739025033687,-500.0,0.00010958,2]
[352275498,1739025033697,-500.0,0.00010958,2]
[352275499,1739025033706,-500.0,0.00010958,2]
[352275500,1739025033716,-500.0,0.00010958,2]
[352275501,1739025033726,-500.0,0.00010958,2]
[352275502,1739025033735,-1221.61,0.00010958,2]
[352275503,1739025033744,-301.6149098,0.00010958,2]
[352275504,1739025033754,-500.0,0.00010958,2]
[352275505,1739025033763,-500.0,0.00010958,2]
[352275506,1739025033773,-500.0,0.00010958,2]
[352275507,1739025033782,-500.0,0.00010958,2]
[352275508,1739025033792,-500.0,0.00010958,2]
[352275509,1739025033802,-500.0,0.00010958,2]
[352275510,1739025033811,-500.0,0.00010958,2]
[352275511,1739025033820,-500.0,0.00010958,2]
[352275512,1739025033830,-500.0,0.00010958,2]
[352275513,1739025033839,-569.26,0.00010958,2]
[352275514,1739025033848,-500.0,0.00010958,2]
[352275515,1739025033857,-248.77942215,0.00010958,2]
[352275516,1739025033867,-500.0,0.00010958,2]
[352275517,1739025033878,-855.56,0.00010958,2]
[352275518,1739025033887,-500.0,0.00010958,2]
[352275519,1739025033896,-500.0,0.00010958,2]
[352275520,1739025033906,-504.29003752,0.00010958,2]
[352275521,1739025033915,-521.09563371,0.00010958,2]
[352275522,1739025033926,-779.43,0.00010958,2]
[352275523,1739025033935,-500.0,0.00010958,2]
[352275524,1739025033944,-500.0,0.00010958,2]
[352275525,1739025033954,-500.0,0.00010958,2]
[352275526,1739025033964,-500.0,0.00010958,2]
[352275527,1739025033973,-500.0,0.00010958,2]
[352275528,1739025033982,-500.0,0.00010958,2]
[352275529,1739025033991,-500.0,0.00010958,2]
[352275530,1739025034001,-986.53,0.00010958,2]
[352275531,1739025034010,-399.05238333,0.00010958,2]
[352275532,1739025034019,-500.0,0.00010958,2]
[352275533,1739025034028,-120.19873717,0.00010958,2]
[352275534,1739025034226,-379.80126283,0.00010958,2]
[352275535,1739025034236,-500.0,0.00010958,2]
[352275536,1739025034245,-500.0,0.00010958,2]
[352275537,1739025034255,-500.0,0.00010958,2]
[352275538,1739025034264,-500.0,0.00010958,2]
[352275539,1739025034273,-500.0,0.00010958,2]
[352275540,1739025034282,-500.0,0.00010958,2]
[352275541,1739025034292,-464.59873717,0.00010958,2]
[352275568,1739025037928,-208.65126283,0.00010958,2]
[352275570,1739025037937,-500.0,0.00010958,2]
[352275572,1739025037947,-500.0,0.00010958,2]
[352275574,1739025037956,-500.0,0.00010958,2]
[352275576,1739025037965,-614.21,0.00010958,2]
[352275578,1739025037975,-500.0,0.00010958,2]
[352275580,1739025037983,-500.0,0.00010958,2]
[352275582,1739025037993,-500.0,0.00010958,2]
[352275584,1739025038002,-500.0,0.00010958,2]
[352275586,1739025038012,-500.0,0.00010958,2]
[352275588,1739025038021,-500.0,0.00010958,2]
[352275590,1739025038031,-610.92,0.00010958,2]
[352275592,1739025038043,-500.0,0.00010958,2]
[352275594,1739025038054,-500.0,0.00010958,2]
[352275596,1739025038063,-500.0,0.00010958,2]
[352275598,1739025038073,-500.0,0.00010958,2]
[352275600,1739025038082,-248.360475,0.00010958,2]
[352275602,1739025038091,-500.0,0.00010958,2]
[352275604,1739025038101,-500.0,0.00010958,2]
[352275606,1739025038110,-500.0,0.00010958,2]
[352275608,1739025038119,-500.0,0.00010958,2]
[352275610,1739025038128,-500.0,0.00010958,2]
[352275612,1739025038137,-500.0,0.00010958,2]
[352275615,1739025038146,-500.0,0.00010958,2]
[352275619,1739025038155,-500.0,0.00010958,2]
[352275623,1739025038165,-460.53401954,0.00010958,2]
[352275627,1739025038175,-500.0,0.00010958,2]
[352275629,1739025038184,-500.0,0.00010958,2]
[352275631,1739025038193,-500.0,0.00010958,2]
[352275633,1739025038203,-500.0,0.00010958,2]
[352275635,1739025038212,-500.0,0.00010958,2]
[352275637,1739025038222,-500.0,0.00010958,2]
[352275639,1739025038231,-500.0,0.00010958,2]
[352275641,1739025038240,-500.0,0.00010958,2]
[352275643,1739025038250,-500.0,0.00010958,2]
[352275645,1739025038259,-500.0,0.00010958,2]
[352275647,1739025038268,-502.08279943,0.00010958,2]
[352275649,1739025038277,-503.49486909,0.00010958,2]
[352275651,1739025038286,-500.0,0.00010958,2]
[352275652,1739025038295,-500.0,0.00010958,2]
[352275654,1739025038305,-500.0,0.00010958,2]
[352275656,1739025038321,-500.0,0.00010958,2]
[352275658,1739025038332,-500.0,0.00010958,2]
[352275660,1739025038342,-814.06,0.00010958,2]
[352275662,1739025038351,-500.0,0.00010958,2]
[352275665,1739025038360,-501.31913381,0.00010958,2]
[352275666,1739025038369,-1354.91,0.00010958,2]
[352275668,1739025038378,-500.0,0.00010958,2]
[352275670,1739025038388,-500.0,0.00010958,2]
[352275673,1739025038402,-500.0,0.00010958,2]
[352275675,1739025038412,-500.0,0.00010958,2]
[352275677,1739025038421,-500.0,0.00010958,2]
[352275679,1739025038431,-500.0,0.00010958,2]
[352275681,1739025038442,-500.0,0.00010958,2]
[352275683,1739025038452,-1532.57,0.00010958,2]
[352275685,1739025038461,-500.0,0.00010958,2]
[352275687,1739025038471,-500.0,0.00010958,2]
[352275689,1739025038481,-500.0,0.00010958,2]
[352275691,1739025038490,-500.0,0.00010958,2]
[352275692,1739025038499,-500.0,0.00010958,2]
[352275694,1739025038509,-500.0,0.00010958,2]
[352275696,1739025038518,-500.0,0.00010958,2]
[352275699,1739025038528,-500.0,0.00010958,2]
[352275700,1739025038537,-731.55,0.00010958,2]
[352275702,1739025038547,-500.0,0.00010958,2]
[352275705,1739025038556,-500.0,0.00010958,2]
[352275707,1739025038566,-500.0,0.00010958,2]
[352275709,1739025038575,-500.0,0.00010958,2]
[352275711,1739025038584,-500.0,0.00010958,2]
[352275712,1739025038593,-500.0,0.00010958,2]
[352275714,1739025038603,-500.0,0.00010958,2]
[352275717,1739025038612,-500.0,0.00010958,2]
[352275719,1739025038622,-500.0,0.00010958,2]
[352275720,1739025038631,-500.0,0.00010958,2]
[352275722,1739025038641,-500.0,0.00010958,2]
[352275724,1739025038650,-500.0,0.00010958,2]
[352275726,1739025038660,-502.93224134,0.00010958,2]
[352275728,1739025038671,-1220.11,0.00010958,2]
[352275731,1739025038680,-500.0,0.00010958,2]
[352275732,1739025038689,-500.0,0.00010958,2]
[352275735,1739025038699,-3454.43,0.00010958,2]
[352275736,1739025038709,-500.0,0.00010958,2]
[352275738,1739025038719,-260.02934263,0.00010958,2]
[352275741,1739025038728,-4525.22,0.00010958,2]
[352275743,1739025038738,-508.39,0.00010958,2]
[352275745,1739025038748,-500.0,0.00010958,2]
[352275747,1739025038757,-500.0,0.00010958,2]
[352275749,1739025038767,-500.0,0.00010958,2]
[352275751,1739025038776,-500.0,0.00010958,2]
[352275753,1739025038786,-1690.82,0.00010958,2]
[352275755,1739025038795,-500.0,0.00010958,2]
[352275756,1739025038804,-500.0,0.00010958,2]
[352275758,1739025038814,-500.0,0.00010958,2]
[352275760,1739025038823,-500.0,0.00010958,2]
[352275762,1739025038833,-501.23005317,0.00010958,2]
[352275765,1739025038843,-1067.09,0.00010958,2]
[352275767,1739025038852,-500.0,0.00010958,2]
[352275769,1739025038862,-500.0,0.00010958,2]
[352275771,1739025038871,-500.0,0.00010958,2]
[352275772,1739025038881,-1190.94,0.00010958,2]
[352275774,1739025038890,-12605.54,0.00010958,2]
[352275776,1739025038900,-500.0,0.00010958,2]
[352275779,1739025038909,-500.0,0.00010958,2]
[352275781,1739025038919,-677.5,0.00010958,2]
[352275783,1739025038930,-500.0,0.00010958,2]
[352275784,1739025038938,-5406.96898048,0.00010958,2]
[352275787,1739025038952,-32713.70101952,0.00010958,2]
[352275789,1739025038961,-500.0,0.00010958,2]
[352275791,1739025038971,-500.0,0.00010958,2]
[352275793,1739025038980,-500.0,0.00010958,2]
[352275795,1739025038989,-500.0,0.00010958,2]
[352275797,1739025038998,-1348.17,0.00010958,2]
[352275799,1739025039007,-500.0,0.00010958,2]
[352275801,1739025039016,-1051.02,0.00010958,2]
[352275803,1739025039026,-500.0,0.00010958,2]
[352275805,1739025039035,-500.0,0.00010958,2]
[352275807,1739025039044,-500.0,0.00010958,2]
[352275809,1739025039054,-1553.35,0.00010958,2]
[352275811,1739025039063,-500.0,0.00010958,2]
[352275813,1739025039072,-500.0,0.00010958,2]
[352275815,1739025039082,-500.0,0.00010958,2]
[352275817,1739025039091,-500.0,0.00010958,2]
[352275819,1739025039100,-500.0,0.00010958,2]
[352275821,1739025039111,-467.40683247,0.00010958,2]
[352275823,1739025039121,-500.0,0.00010958,2]
[352275825,1739025039130,-1397.34,0.00010958,2]
[352275827,1739025039140,-500.0,0.00010958,2]
[352275829,1739025039149,-935.31,0.00010958,2]
[352275832,1739025039159,-500.0,0.00010958,2]
[352275834,1739025039168,-500.0,0.00010958,2]
[352275836,1739025039179,-500.0,0.00010958,2]
[352275838,1739025039189,-500.0,0.00010958,2]
[352275840,1739025039199,-500.0,0.00010958,2]
[352275842,1739025039208,-524.13690435,0.00010958,2]
[352275844,1739025039218,-500.0,0.00010958,2]
[352275846,1739025039228,-500.0,0.00010958,2]
[352275848,1739025039237,-500.0,0.00010958,2]
[352275850,1739025039247,-500.0,0.00010958,2]
[352275852,1739025039256,-500.0,0.00010958,2]
[352275854,1739025039265,-500.0,0.00010958,2]
[352275856,1739025039274,-500.0,0.00010958,2]
[352275858,1739025039284,-500.0,0.00010958,2]
[352275860,1739025039293,-496.5739858,0.00010958,2]